bitfinex-derivatives/quotes_SOLF0:USTF0_20241120
["timestamp","ask_amount","ask_price","bid_price","bid_amount"]
[1732106386158,2.28,238.35,238.25,10.13251807]
[1732106386360,2.0956,238.34,238.25,10.13251807]
[1732106386557,2.0956,238.34,238.23,2.28]
[1732106386558,2.28,238.35,238.3,2.0959]
[1732106386757,2.28,238.35,238.28,10.13251807]
[1732106387162,2.28,238.38,238.32,2.0958]
[1732106387760,4.3753,238.38,238.33,2.0956]
[1732106387966,2.28,238.38,238.28,10.13251807]
[1732106388268,2.0954,238.37,238.32,2.0957]
[1732106388660,2.0954,238.37,238.31,10.13251807]
[1732106389063,4.3753,238.38,238.33,2.0957]
[1732106389270,4.3753,238.38,238.31,10.13251807]
[1732106389765,2.28,238.38,238.31,10.13251807]
[1732106390567,0.16906,238.39,238.34,10.13251807]
[1732106391159,0.16906,238.39,238.37,2.0952]
[1732106391559,0.16906,238.39,238.34,10.13251807]
[1732106391865,0.16906,238.39,238.38,2.0952]
[1732106393969,2.28,238.47,238.42,2.0949]
[1732106394165,2.28,238.47,238.37,10.13251807]
[1732106394568,2.0947,238.44,238.39,2.0951]
[1732106394766,2.28,238.47,238.34,10.13251807]
[1732106395267,2.0949,238.43,238.37,2.0952]
[1732106395768,2.0949,238.43,238.37,10.13251807]
[1732106396272,2.28,238.47,238.39,2.0951]
[1732106396472,2.0947,238.44,238.39,2.0951]
[1732106398573,2.0945,238.47,238.42,2.0949]
[1732106398773,2.0945,238.47,238.4,10.13251807]
[1732106398971,25.84756065,238.53,238.4,10.13251807]
[1732106399167,25.84756065,238.53,238.44,2.0947]
[1732106399168,28.12756065,238.53,238.44,2.0947]
[1732106399566,28.12756065,238.53,238.4,2.095]
[1732106399567,2.0943,238.49,238.4,2.095]
[1732106399767,16.48202056,238.52,238.37,10.13251807]
[1732106399969,26.61453863,238.51,238.37,10.13251807]
[1732106400174,16.48202056,238.5,238.37,2.0952]
[1732106400371,16.48202056,238.49,238.37,2.0952]
[1732106400670,2.0949,238.43,238.38,2.0952]
[1732106400871,2.28,238.45,238.34,10.13251807]
[1732106401075,2.28,238.47,238.34,10.13251807]
[1732106401272,10.13251807,238.51,238.4,2.095]
[1732106401273,2.0947,238.45,238.4,2.095]
[1732106401472,2.28,238.47,238.37,10.13251807]
[1732106401672,2.28,238.47,238.32,2.28]
[1732106401673,2.28,238.47,238.36,10.13251807]
[1732106401876,2.0951,238.4,238.36,2.0954]
[1732106402671,3.5856,238.47,238.33,10.13251807]
[1732106402978,10.13251807,238.44,238.3,1.2054]
[1732106403178,10.13251807,238.44,238.27,10.13251807]
[1732106403470,10.13251807,238.41,238.27,10.13251807]
[1732106403671,2.28,238.4,238.27,10.13251807]
[1732106403873,2.0955,238.36,238.31,2.0958]
[1732106404475,2.0955,238.36,238.27,10.13251807]
[1732106404670,2.28,238.4,238.3,10.13251807]
[1732106405076,2.5373,238.46,238.33,10.13251807]
[1732106405077,2.28,238.43,238.33,10.13251807]
[1732106405482,2.0951,238.4,238.34,2.0955]
[1732106405677,2.28,238.43,238.34,2.0955]
[1732106405871,2.28,238.43,238.3,10.13251807]
[1732106406071,2.0949,238.42,238.37,2.0953]
[1732106406375,2.28,238.43,238.33,10.13251807]
[1732106406976,2.24,238.45,238.36,10.13251807]
[1732106407475,2.0947,238.45,238.4,2.095]
[1732106407676,2.24,238.47,238.39,10.13251807]
[1732106407880,2.24,238.5,238.39,10.13251807]
[1732106408284,2.0945,238.47,238.42,2.0948]
[1732106409280,2.24,238.5,238.43,2.0948]
[1732106410078,2.0943,238.49,238.45,2.0946]
[1732106410283,2.0943,238.49,238.39,10.13251807]
[1732106410884,2.0944,238.48,238.39,10.13251807]
[1732106411081,2.24,238.52,238.39,10.13251807]
[1732106411585,2.0946,238.46,238.41,2.0949]
[1732106411775,7.87884082,238.51,238.36,10.13251807]
[1732106411980,10.13251807,238.5,238.33,14.76031807]
[1732106412186,2.24,238.52,238.36,2.0954]
[1732106412187,10.13251807,238.47,238.36,2.0954]
[1732106412381,2.24,238.46,238.33,14.76031807]
[1732106412876,2.0951,238.4,238.35,2.0954]
[1732106413080,2.24,238.46,238.3,12.37251807]
[1732106413283,2.4548,238.45,238.3,12.37251807]
[1732106413586,2.095,238.41,238.33,2.0957]
[1732106413778,2.4548,238.45,238.33,2.0957]
[1732106414484,10.13251807,238.44,238.3,2.0959]
[1732106414990,10.13251807,238.44,238.27,12.37251807]
[1732106415288,2.0956,238.34,238.27,12.37251807]
[1732106415486,10.13251807,238.44,238.27,12.37251807]
[1732106415487,2.24,238.38,238.27,12.37251807]
[1732106416388,2.0955,238.35,238.31,2.0959]
[1732106416983,2.24,238.38,238.27,12.37251807]
[1732106417189,2.0955,238.36,238.31,2.0958]
[1732106417883,2.24,238.38,238.27,12.37251807]
[1732106418084,2.24,238.42,238.3,10.13251807]
[1732106418584,2.24,238.42,238.33,2.0956]
[1732106419094,2.0953,238.38,238.33,2.0956]
[1732106419481,2.0953,238.38,238.3,10.13251807]
[1732106419784,2.0953,238.38,238.34,2.0956]
[1732106420788,2.24,238.42,238.27,2.24]
[1732106420789,2.095,238.41,238.37,2.0953]
[1732106420982,2.24,238.42,238.33,10.13251807]
[1732106421386,2.24,238.42,238.3,10.13251807]
[1732106422093,2.0951,238.4,238.35,2.0954]
[1732106422595,2.0953,238.38,238.34,2.0955]
[1732106422788,2.0953,238.38,238.3,10.13251807]
[1732106423089,2.0952,238.39,238.34,2.0956]
[1732106423286,2.0952,238.39,238.3,10.13251807]
[1732106423287,2.24,238.42,238.3,10.13251807]
[1732106423785,2.24,238.42,238.27,10.13251807]
[1732106424188,2.24,238.42,238.29,2.096]
[1732106424189,2.0953,238.38,238.29,2.096]
[1732106424489,2.24,238.42,238.29,2.096]
[1732106425088,2.0956,238.35,238.3,2.0959]
[1732106426290,2.0953,238.38,238.31,2.0958]
[1732106426592,2.24,238.42,238.31,2.0958]
[1732106426991,2.0956,238.35,238.31,2.0958]
[1732106427196,2.24,238.36,238.22,2.24]
[1732106427390,2.24,238.36,238.23,10.13251807]
[1732106427595,2.0958,238.32,238.28,2.096]
[1732106428292,2.0958,238.32,238.26,10.13251807]
[1732106428293,2.0958,238.32,238.27,2.0961]
[1732106429190,2.24,238.36,238.27,2.0961]
[1732106429795,2.0958,238.32,238.28,2.0961]
[1732106432193,2.0956,238.34,238.28,2.0961]
[1732106432397,2.24,238.36,238.27,2.0962]
[1732106432693,2.24,238.36,238.26,10.13251807]
[1732106432898,2.0959,238.32,238.26,10.13251807]
[1732106433090,2.0959,238.32,238.28,2.0961]
[1732106434290,2.24,238.36,238.28,2.0961]
[1732106434497,2.0959,238.31,238.28,2.0961]
[1732106435199,2.24,238.36,238.28,2.0961]
[1732106436593,2.0956,238.34,238.28,2.0961]
[1732106436793,2.24,238.36,238.28,2.0961]
[1732106437205,2.24,238.36,238.26,10.13251807]
[1732106437893,10.13251807,238.44,238.29,10.13251807]
[1732106438095,10.83169397,238.43,238.29,10.13251807]
[1732106438295,8.61169397,238.42,238.29,10.13251807]
[1732106438491,2.0955,238.36,238.32,2.0957]
[1732106438797,17.31779165,238.42,238.34,6.48609768]
[1732106438996,8.70609768,238.42,238.34,6.48609768]
[1732106439396,2.0953,238.37,238.29,2.22]
[1732106439701,8.70609768,238.42,238.33,6.48609768]
[1732106439897,2.0953,238.38,238.35,2.0955]
[1732106440196,2.4548,238.45,238.37,6.48609768]
[1732106440497,2.0951,238.4,238.37,8.58139768]
[1732106440701,2.4548,238.45,238.37,2.0953]
[1732106441005,2.4548,238.45,238.34,2.0956]
[1732106441300,16.51313996,238.44,238.3,10.13074413]
[1732106441494,2.0955,238.36,238.3,10.13074413]
[1732106441694,2.0955,238.36,238.32,2.0958]
[1732106442394,2.22,238.4,238.33,10.13074413]
[1732106443497,2.0952,238.39,238.35,2.0954]
[1732106444096,2.22,238.4,238.36,2.0954]
[1732106444298,2.22,238.44,238.33,10.13074413]
[1732106444697,2.095,238.41,238.36,2.0954]
[1732106444899,35.9796416,238.51,238.33,12.35074413]
[1732106445198,2.22,238.48,238.36,10.13074413]
[1732106445397,2.22,238.48,238.23,4.1932]
[1732106445398,10.13074413,238.43,238.25,10.13074413]
[1732106445608,10.83692808,238.42,238.25,10.13074413]
[1732106445905,2.0957,238.34,238.29,2.096]
[1732106446096,2.22,238.36,238.25,10.13074413]
[1732106447406,2.0957,238.33,238.28,2.0961]
[1732106448500,2.0957,238.33,238.24,2.5483]
[1732106448501,2.0959,238.3,238.26,2.0963]
[1732106448901,2.22,238.36,238.26,2.0963]
[1732106449097,2.22,238.36,238.27,2.0962]
[1732106449499,2.22,238.36,238.24,2.5483]
[1732106449704,2.0959,238.31,238.24,2.5483]
[1732106450908,2.0959,238.31,238.26,2.0963]
[1732106451303,2.0959,238.31,238.24,2.5483]
[1732106452100,2.0959,238.31,238.26,2.0963]
[1732106453398,2.0959,238.31,238.27,2.0962]
[1732106453898,2.22,238.36,238.24,2.5483]
[1732106454098,10.13074413,238.34,238.19,10.13074413]
[1732106454308,10.13074413,238.34,238.11,4.1951]
[1732106454309,10.13074413,238.31,238.16,10.13074413]
[1732106454506,2.0964,238.26,238.21,2.0967]
[1732106455204,2.0964,238.25,238.21,2.0967]
[1732106455600,2.22,238.3,238.19,2.0969]
[1732106455803,10.13074413,238.28,238.13,10.13074413]
[1732106456498,2.0969,238.2,238.14,2.0973]
[1732106457304,2.0969,238.2,238.15,2.0973]
[1732106458610,2.22,238.23,238.13,2.0974]
[1732106459301,10.13074413,238.25,238.1,10.13074413]
[1732106459302,2.22,238.22,238.1,10.13074413]
[1732106459508,1.2711,238.29,238.1,10.13074413]
[1732106459700,10.13074413,238.26,238.1,10.13074413]
[1732106460008,10.13074413,238.26,238.14,2.0973]
[1732106460608,2.22,238.28,238.14,8.59305328]
[1732106460609,6.49575328,238.22,238.14,8.59305328]
[1732106460805,2.22,238.21,238.14,8.59305328]
[1732106461104,2.0969,238.19,238.14,6.49575328]
[1732106462301,2.0969,238.19,238.14,8.59305328]
[1732106463411,4.3167,238.21,238.17,2.097]
[1732106463911,4.3167,238.21,238.16,6.49575328]
[1732106464414,2.22,238.21,238.17,2.0971]
[1732106464608,6.49575328,238.26,238.17,2.0971]
[1732106464808,2.22,238.25,238.18,6.49575328]
[1732106465010,1.2711,238.29,238.2,6.49575328]
[1732106465313,1.2711,238.29,238.22,6.49575328]
[1732106465314,2.2,238.28,238.22,6.49575328]
[1732106465506,1.2711,238.29,238.22,6.49575328]
[1732106465709,3.4711,238.29,238.22,6.49575328]
[1732106466014,2.2,238.29,238.22,6.49575328]
[1732106466216,2.0962,238.27,238.23,2.0965]
[1732106469315,2.0964,238.26,238.21,2.0967]
[1732106469613,6.49575328,238.26,238.16,2.411]
[1732106469809,6.49575328,238.24,238.17,6.49575328]
[1732106470312,6.49575328,238.24,238.17,8.59285328]
[1732106470908,6.49575328,238.26,238.17,6.49575328]
[1732106471307,2.0966,238.22,238.18,2.097]
[1732106473407,2.0966,238.22,238.19,2.0969]
[1732106473807,2.0964,238.26,238.19,6.49575328]
[1732106474008,35.12311325,238.46,238.21,6.49575328]
[1732106474215,6.49575328,238.32,238.23,6.49575328]
[1732106474516,6.49575328,238.3,238.21,8.59245328]
[1732106474817,5.9625,238.36,238.21,2.0967]
[1732106474818,6.49575328,238.28,238.21,2.0967]
[1732106475013,6.49575328,238.26,238.16,2.411]
[1732106475216,6.49575328,238.26,238.19,2.0968]
[1732106475615,6.49575328,238.26,238.18,2.0969]
[1732106476219,2.0969,238.2,238.14,2.0973]
[1732106476419,2.0969,238.2,238.16,6.49575328]
[1732106477221,6.49575328,238.24,238.16,6.49575328]
[1732106477420,6.49575328,238.26,238.18,6.49575328]
[1732106477820,2.0966,238.23,238.19,2.0969]
[1732106478314,1.2911,238.27,238.18,6.49575328]
[1732106478618,6.49575328,238.26,238.16,6.49575328]
[1732106479921,2.0967,238.22,238.18,2.097]
[1732106482325,2.0968,238.21,238.18,2.097]
[1732106483822,4.7741,238.27,238.2,6.49575328]
[1732106484029,3.4911,238.27,238.2,6.49575328]
[1732106484326,1.2391,238.36,238.22,6.49575328]
[1732106484327,6.49575328,238.31,238.22,6.49575328]
[1732106484520,2.2,238.3,238.22,6.49575328]
[1732106485323,6.49575328,238.31,238.22,6.49575328]
[1732106485625,2.2,238.3,238.22,6.49575328]
[1732106486028,2.0963,238.27,238.23,2.0965]
[1732106486926,2.2,238.31,238.24,6.49575328]
[1732106487428,2.0962,238.28,238.24,8.59215328]
[1732106487825,2.2,238.31,238.24,6.49575328]
[1732106488026,2.0961,238.29,238.26,8.59195328]
[1732106488630,2.2,238.34,238.28,2.0961]
[1732106489128,2.2,238.34,238.28,8.59185328]
[1732106489524,2.0958,238.32,238.28,8.59185328]
[1732106489931,2.2,238.34,238.28,8.59185328]
[1732106490131,2.0959,238.31,238.28,8.59185328]
[1732106490326,2.2,238.34,238.29,2.096]
[1732106490529,2.0956,238.35,238.28,6.49575328]
[1732106490828,8.69575328,238.37,238.29,2.096]
[1732106492330,2.0958,238.33,238.29,2.096]
[1732106493732,2.0958,238.33,238.24,2.2]
[1732106493733,2.0954,238.36,238.32,2.0957]
[1732106494837,2.0953,238.38,238.34,2.0956]
[1732106495140,1.3044,238.41,238.32,6.49575328]
[1732106495437,6.49575328,238.4,238.32,6.49575328]
[1732106495938,2.0953,238.38,238.34,2.0955]
[1732106496639,2.0955,238.35,238.28,6.49575328]
[1732106497433,2.0955,238.35,238.19,6.7056]
[1732106497434,6.49575328,238.34,238.19,2.5119]
[1732106497633,6.49575328,238.32,238.23,6.49575328]
[1732106498235,2.0959,238.31,238.26,2.0962]
[1732106498939,2.0959,238.31,238.23,6.49575328]
[1732106498940,2.0959,238.31,238.27,2.0962]
[1732106499539,2.0959,238.3,238.27,2.0962]
[1732106499740,6.49575328,238.32,238.23,6.49575328]
[1732106499935,6.49575328,238.3,238.23,6.49575328]
[1732106500135,6.49575328,238.32,238.21,6.49575328]
[1732106500335,6.49575328,238.32,238.23,6.49575328]
[1732106501345,2.0962,238.28,238.24,2.0965]
[1732106501539,6.49575328,238.3,238.02,20.44351704]
[1732106501742,6.49575328,238.3,238.21,6.49575328]
[1732106501942,6.49575328,238.3,238.13,2.4978]
[1732106501943,2.2,238.31,238.23,6.49575328]
[1732106503345,2.0961,238.28,238.24,2.0965]
[1732106505840,8.69575328,238.32,238.23,6.49575328]
[1732106507851,2.2,238.26,238.19,8.59265328]
[1732106508345,2.2,238.26,238.2,2.0968]
[1732106509250,2.0966,238.23,238.2,2.0968]
[1732106510246,2.0966,238.23,238.19,8.59265328]
[1732106510447,2.2,238.26,238.19,8.59265328]
[1732106510649,2.2,238.26,238.19,6.49575328]
[1732106510846,6.49575328,238.23,238.13,2.0974]
[1732106511051,6.49575328,238.21,238.13,6.49575328]
[1732106511353,6.49575328,238.19,238.12,2.0975]
[1732106511554,2.2,238.18,238.12,2.0975]
[1732106511752,2.0972,238.17,238.12,2.0975]
[1732106511950,2.2,238.18,238.12,2.0975]
[1732106512453,2.0974,238.14,238.1,2.0976]
[1732106512754,2.0974,238.14,238.11,6.49575328]
[1732106513545,6.49575328,238.15,238.06,6.49575328]
[1732106513752,6.49575328,238.11,237.99,1.2375]
[1732106513953,6.49575328,238.09,238.02,6.49575328]
[1732106514246,2.0981,238.06,238.02,6.49575328]
[1732106515353,2.0983,238.03,237.99,6.49575328]
[1732106515655,6.49575328,238.08,237.99,6.49575328]
[1732106516753,2.0982,238.04,237.99,2.0987]
[1732106518049,2.0984,238.02,237.97,2.0988]
[1732106519149,2.0985,238.01,237.96,2.0989]
[1732106519753,2.2,238.05,237.95,2.099]
[1732106520049,2.2,238.05,237.93,10.16206855]
[1732106520247,2.2,238.05,237.94,2.0991]
[1732106520856,2.0987,237.99,237.94,2.0991]
[1732106521651,1.191,238.09,237.96,10.16206855]
[1732106521951,3.391,238.09,237.99,10.16206855]
[1732106522150,2.0982,238.04,237.99,12.26076855]
[1732106522959,2.0981,238.06,237.97,2.0988]
[1732106523157,3.391,238.09,237.96,10.16206855]
[1732106523457,2.2,238.09,237.99,10.16206855]
[1732106523646,2.2,238.09,238.02,10.16206855]
[1732106523848,2.4517,238.1,238.02,10.16206855]
[1732106523849,2.0978,238.1,238.02,10.16206855]
[1732106525155,2.0976,238.12,238.07,2.0979]
[1732106525854,2.2,238.15,238.05,10.16206855]
[1732106526157,2.2,238.15,238.02,10.16206855]
[1732106526653,2.2,238.15,238.05,2.0981]
[1732106526654,2.0978,238.1,238.05,2.0981]
[1732106526859,2.2,238.09,237.96,12.57786855]
[1732106527253,2.0983,238.04,238.0,2.0986]
[1732106527457,2.2,238.09,237.96,1.2123]
[1732106527650,2.2,238.09,237.95,10.16206855]
[1732106528354,2.2,238.09,237.98,2.0988]
[1732106528355,2.0984,238.02,237.98,2.0988]
[1732106528549,10.16206855,238.14,237.98,10.16206855]
[1732106528750,10.16206855,238.14,238.01,10.16206855]
[1732106528952,2.0982,238.05,238.01,12.26056855]
[1732106529148,2.2,238.13,237.98,10.16206855]
[1732106529751,2.0982,238.05,238.01,2.0985]
[1732106529951,2.0982,238.05,237.98,10.16206855]
[1732106530153,2.2,238.13,237.98,10.16206855]
[1732106530358,2.2,238.12,237.98,10.16206855]
[1732106530552,2.2,238.12,238.0,2.0986]
[1732106532360,2.2,238.12,237.98,10.16206855]
[1732106532557,2.0984,238.02,237.95,10.16206855]
[1732106533653,2.2,238.04,237.95,10.16206855]
[1732106534553,2.0984,238.03,237.98,10.16206855]
[1732106534957,2.2,238.04,237.95,10.16206855]
[1732106535361,2.2,238.04,237.96,2.0989]
[1732106535758,2.0986,238.0,237.95,10.16206855]
[1732106535955,2.2,238.04,237.95,10.16206855]
[1732106536355,2.0988,237.98,237.95,10.16206855]
[1732106536560,2.2,238.04,237.95,10.16206855]
[1732106537758,2.2,238.04,237.96,2.0989]
[1732106537759,2.0986,238.01,237.96,2.0989]
[1732106538163,2.0986,238.01,237.97,2.0988]
[1732106538456,2.2,238.04,237.88,2.2]
[1732106538661,2.2,238.04,237.93,10.16206855]
[1732106539058,2.2,238.04,237.96,10.16206855]
[1732106539059,2.0985,238.02,237.96,10.16206855]
[1732106539256,2.2,238.04,237.96,10.16206855]
[1732106539665,2.0985,238.01,237.97,2.0988]
[1732106539957,2.0985,238.01,237.96,10.16206855]
[1732106540762,2.0985,238.01,237.96,12.26096855]
[1732106541157,2.0985,238.01,237.96,10.16206855]
[1732106541353,2.2,238.04,237.96,10.16206855]
[1732106543465,2.0987,237.99,237.96,10.16206855]
[1732106544665,2.0987,237.99,237.98,6.50449517]
[1732106545463,2.2,238.04,237.98,6.50449517]
[1732106545660,4.1947,238.15,238.01,6.50449517]
[1732106545859,6.50449517,238.12,238.03,6.50449517]
[1732106546057,2.0982,238.05,238.03,6.50449517]
[1732106546661,4.1947,238.15,238.0,10.15848979]
[1732106546865,1.2209,238.16,238.03,10.15848979]
[1732106547166,2.2,238.15,238.03,10.15848979]
[1732106547359,2.0975,238.12,238.07,2.0979]
[1732106547561,2.2,238.15,238.03,10.15848979]
[1732106548162,2.2,238.15,238.07,2.098]
[1732106548763,2.0974,238.13,238.08,2.0978]
[1732106549164,2.2,238.15,238.08,2.0978]
[1732106549362,1.2209,238.16,238.08,2.0978]
[1732106549560,2.0975,238.13,238.08,2.0978]
[1732106549762,10.15848979,238.22,238.11,2.0976]
[1732106549963,2.0973,238.16,238.11,2.0976]
[1732106550167,2.2,238.21,238.06,10.15848979]
[1732106550469,2.0974,238.14,238.06,10.15848979]
[1732106550770,2.2,238.21,238.06,10.15848979]
[1732106550962,2.2,238.21,238.09,2.0978]
[1732106551164,2.0974,238.14,238.09,2.0978]
[1732106551561,2.2,238.21,238.09,2.0978]
[1732106551772,2.0975,238.13,238.07,2.0979]
[1732106552366,2.2,238.21,238.03,10.15848979]
[1732106552367,10.15848979,238.19,238.03,10.15848979]
[1732106552568,10.15848979,238.16,238.04,2.0982]
[1732106552768,2.2,238.15,238.04,2.0982]
[1732106552969,2.0979,238.08,238.04,2.0982]
[1732106563084,2.0979,238.09,238.0,12.35848979]
[1732106563684,2.2,238.15,238.0,12.35848979]
[1732106564078,2.0979,238.08,238.04,2.0982]
[1732106564979,2.0979,238.08,238.05,2.0981]
[1732106566085,2.2,238.15,238.04,2.0982]
[1732106566285,2.098,238.07,238.04,2.0982]
[1732106566680,6.50160678,238.12,238.04,2.0982]
[1732106567186,2.098,238.08,238.04,2.0982]
[1732106567382,6.50160678,238.1,237.99,2.2]
[1732106567584,6.50160678,238.08,238.0,6.50160678]
[1732106567783,2.0982,238.05,238.0,6.50160678]
[1732106568689,2.0983,238.04,238.0,8.60020678]
[1732106568887,6.50160678,238.08,238.0,2.0986]
[1732106569087,2.0984,238.03,237.99,8.60030678]
[1732106569593,6.50160678,238.06,237.97,7.81010678]
[1732106569796,2.0985,238.01,237.97,8.60040678]
[1732106570093,2.0985,238.01,237.97,6.50160678]
[1732106570294,7.75990678,238.08,237.99,6.50160678]
[1732106570691,2.0981,238.06,237.99,6.50160678]
[1732106570895,7.75990678,238.08,237.99,6.50160678]
[1732106572094,2.0981,238.06,237.99,8.60030678]
[1732106572299,1.2583,238.08,238.01,6.50160678]
[1732106572792,1.2633,238.09,238.03,6.50160678]
[1732106573198,2.0979,238.08,238.03,6.50160678]
[1732106573491,6.50160678,238.12,238.05,6.50160678]
[1732106573492,2.2,238.12,238.05,6.50160678]
[1732106574298,2.0977,238.1,238.05,6.50160678]
[1732106574497,6.50160678,238.1,238.01,6.50160678]
[1732106574699,2.0982,238.05,238.02,2.0984]
[1732106575097,6.50160678,238.1,238.02,2.0984]
[1732106575497,2.0981,238.06,238.02,2.0984]
[1732106576601,2.098,238.08,238.03,8.59990678]
[1732106577102,2.098,238.08,238.04,2.0982]
[1732106577398,8.70160678,238.12,238.04,2.0982]
[1732106577599,2.098,238.07,238.04,2.0982]
[1732106577999,2.098,238.07,238.03,8.59990678]
[1732106578801,8.70160678,238.12,238.03,8.59990678]
[1732106579102,2.0981,238.06,238.03,2.0983]
[1732106579301,6.50160678,238.09,238.0,3.3548]
[1732106579504,2.0982,238.04,238.0,3.3548]
[1732106579797,6.50160678,238.09,237.98,6.50160678]
[1732106580105,2.0986,238.01,237.98,6.50160678]
[1732106580400,2.0988,237.98,237.94,0.24214]
[1732106580897,6.50160678,238.01,237.94,0.24214]
[1732106581097,2.0989,237.97,237.94,0.24214]
[1732106581297,6.50160678,237.99,237.94,0.24214]
[1732106581797,2.099,237.95,237.94,0.24214]
[1732106585002,8.60060678,237.95,237.94,0.24214]
[1732106585208,6.50160678,237.93,237.84,6.50160678]
[1732106585403,6.50160678,237.91,237.83,1.185]
[1732106585607,6.50160678,237.91,237.76,2.2]
[1732106585901,6.50160678,237.91,237.84,6.50160678]
[1732106586103,8.70160678,237.93,237.84,6.50160678]
[1732106586503,2.0996,237.89,237.84,6.50160678]
[1732106586699,8.70160678,237.93,237.84,6.50160678]
[1732106587105,2.0997,237.88,237.84,6.50160678]
[1732106587608,2.0997,237.88,237.84,8.60160678]
[1732106588303,2.0995,237.91,237.86,6.50160678]
[1732106588903,2.0995,237.9,237.86,6.50160678]
[1732106590509,2.0995,237.9,237.86,8.60140678]
[1732106590704,2.3704,238.05,237.88,6.50160678]
[1732106591013,6.50160678,238.0,237.92,6.50160678]
[1732106591211,6.50160678,238.0,237.9,6.50160678]
[1732106591711,2.0991,237.94,237.9,8.60110678]
[1732106595411,8.70160678,237.98,237.9,6.50160678]
[1732106595708,2.0993,237.92,237.88,8.60120678]
[1732106596313,2.0996,237.89,237.84,8.60160678]
[1732106596514,2.0996,237.89,237.86,6.50160678]
[1732106596709,6.50160678,237.94,237.86,6.50160678]
[1732106596915,6.50160678,237.94,237.88,6.50160678]
[1732106596916,2.0991,237.94,237.88,6.50160678]
[1732106597216,2.2,237.94,237.88,6.50160678]
[1732106597513,2.2,237.95,237.83,2.4589]
[1732106597717,2.2,237.95,237.88,6.50160678]
[1732106598718,2.0995,237.9,237.88,6.50160678]
[1732106598918,2.2,237.95,237.86,6.50160678]
[1732106600417,2.2,237.95,237.86,8.60140678]
[1732106601125,2.0995,237.9,237.86,8.60140678]
[1732106601619,2.2,237.95,237.86,8.60140678]
[1732106601815,2.2,237.95,237.88,6.50160678]
[1732106603013,2.2,237.95,237.83,2.4589]
[1732106603014,1.2238,238.04,237.92,6.50160678]
[1732106603215,6.50160678,238.02,237.92,6.50160678]
[1732106603920,2.0989,237.96,237.93,2.0991]
[1732106605219,2.2,238.01,237.93,2.0991]
[1732106605420,2.2,238.02,237.96,6.50160678]
[1732106606016,2.0987,237.99,237.96,8.60050678]
[1732106606818,2.3704,238.05,237.98,6.50160678]
[1732106607021,2.0983,238.03,237.99,2.0987]
[1732106608118,1.1804,238.05,237.99,2.0987]
[1732106608119,2.0984,238.02,237.99,2.0987]
[1732106608522,1.1804,238.05,237.98,6.50160678]
[1732106608723,2.0987,238.0,237.94,8.70160678]
[1732106609024,2.0987,238.0,237.94,6.50160678]
[1732106609420,2.0987,238.0,237.95,2.099]
[1732106610428,6.50160678,238.01,237.94,6.50160678]
[1732106610726,6.50160678,238.03,237.96,6.50160678]
[1732106611118,2.0987,237.99,237.96,6.50160678]
[1732106611924,2.0987,237.99,237.96,8.60050678]
[1732106612326,2.0985,238.01,237.98,6.50160678]
[1732106613026,1.1804,238.05,237.98,6.50160678]
[1732106613332,1.1804,238.05,237.99,2.0987]
[1732106613535,2.0984,238.03,237.99,2.0987]
[1732106613834,2.0984,238.03,238.0,2.0985]
[1732106614626,2.0984,238.03,238.0,8.60010678]
[1732106614934,2.0982,238.05,238.01,2.0984]
[1732106615626,2.0982,238.05,238.02,8.60000678]
[1732106615821,2.098,238.07,238.02,8.60000678]
[1732106616025,8.70160678,238.11,238.02,8.60000678]
[1732106616232,8.70160678,238.11,237.97,1.2674]
[1732106616233,2.2,238.11,238.05,2.0981]
[1732106616530,8.70160678,238.11,238.02,6.50160678]
[1732106617126,2.0979,238.08,238.02,6.50160678]
[1732106617322,8.70160678,238.11,238.02,6.50160678]
[1732106618227,8.70160678,238.11,238.02,8.60000678]
[1732106619129,2.0981,238.06,238.02,8.60000678]
[1732106619325,6.50160678,238.09,238.01,2.0985]